bitfinex/quotes_ETHUSD_20251017
["timestamp","ask_amount","ask_price","bid_price","bid_amount"]
[1760691741378,30.01980603,3715.7,3714.7,2.69200742]
[1760691741379,0.044,3714.9,3714.8,2.69193496]
[1760691741567,0.04692943,3715.0,3714.2,0.4294]
[1760691741798,0.04692943,3715.0,3714.3,7.216759]
[1760691741999,0.04692943,3715.0,3714.4,2.69222485]
[1760691742180,0.04692943,3715.0,3714.1,0.169]
[1760691742381,0.6336,3714.5,3713.4,0.4294]
[1760691742604,2.3616,3714.1,3713.1,0.1751]
[1760691742907,0.04692943,3715.0,3713.1,0.1751]
[1760691742908,0.04692943,3715.0,3714.9,2.69186249]
[1760691743205,0.002,3716.5,3714.8,0.169]
[1760691743206,0.045,3715.4,3714.8,0.169]
[1760691743382,0.045,3715.3,3714.8,0.169]
[1760691743582,2.83,3715.3,3715.2,2.69164513]
[1760691743823,30.46040603,3716.8,3715.2,0.4294]
[1760691743972,2.83,3716.4,3715.8,2.69119006]
[1760691744309,30.01980603,3716.3,3715.0,2.69171982]
[1760691744521,2.3616,3716.2,3714.9,0.4294]
[1760691744832,30.01980603,3715.0,3714.3,2.69223193]
[1760691745107,0.6336,3714.8,3714.2,0.4294]
[1760691745474,0.6336,3714.8,3713.5,0.4294]
[1760691745674,0.6336,3714.8,3713.4,0.4294]
[1760691745916,0.6336,3714.4,3713.1,0.1751]
[1760691746220,30.65340603,3714.1,3712.7,0.001]
[1760691746379,0.6336,3713.9,3712.7,0.001]
[1760691746694,0.6336,3713.7,3712.8,0.4294]
[1760691746898,0.6336,3713.7,3712.7,0.001]
[1760691746899,0.6336,3713.7,3712.9,2.6932889]
[1760691747075,0.68054208,3713.7,3712.9,0.53878071]
[1760691747276,0.68054208,3713.7,3713.1,2.69311463]
[1760691747524,0.68054208,3713.7,3712.7,0.001]
[1760691747727,0.6336,3713.5,3712.7,0.001]
[1760691747994,5.05448153,3713.5,3712.7,0.001]
[1760691748285,30.01980603,3713.6,3712.7,0.001]
[1760691748286,2.3616,3713.2,3712.7,0.001]
[1760691748511,2.3616,3713.0,3712.7,0.001]
[1760691748691,5.05498504,3712.8,3712.7,0.001]
[1760691749014,5.05527525,3712.4,3712.3,1.231]
[1760691749196,8.33787525,3712.4,3712.3,1.231]
[1760691750286,8.38483561,3712.4,3712.3,1.231]
[1760691750875,8.80749135,3712.4,3712.3,1.231]
[1760691751110,8.80749135,3712.4,3712.0,0.01]
[1760691751111,3.32749294,3712.1,3712.0,0.01]
[1760691751313,3.32792843,3711.5,3711.0,1.23425063]
[1760691751613,35.07595226,3711.2,3711.0,1.23425063]
[1760691751819,2.3616,3711.2,3711.0,1.23425063]
[1760691752116,35.56352565,3711.2,3711.0,1.23425063]
[1760691752324,2.69483669,3710.8,3710.5,1.01329257]
[1760691752612,7.90143669,3710.8,3710.5,1.01329257]
[1760691752813,8.34203669,3710.8,3710.5,1.01329257]
[1760691752989,5.6472,3710.8,3710.5,1.01329257]
[1760691753191,5.2066,3710.8,3710.5,1.01329257]
[1760691753423,2.848,3711.0,3710.5,1.01329257]
[1760691753722,1.728,3710.9,3710.5,1.01329257]
[1760691754283,0.6336,3710.8,3710.5,1.01329257]
[1760691754484,3.76903669,3710.8,3710.5,1.01329257]
[1760691754713,0.6336,3710.8,3710.5,1.01329257]
[1760691755081,3.76903669,3710.8,3710.5,1.01329257]
[1760691755686,0.6336,3710.8,3710.5,1.01329257]
[1760691755891,3.32843669,3710.8,3710.5,1.01329257]
[1760691756081,0.6336,3710.8,3710.5,1.01329257]
[1760691756632,1.0742,3710.8,3710.5,1.01329257]
[1760691756931,3.76903669,3710.8,3710.5,1.01329257]
[1760691757297,3.32763669,3710.8,3710.5,1.01329257]
[1760691757821,3.76823669,3710.8,3710.6,0.001]
[1760691758323,3.32763669,3710.8,3710.6,0.001]
[1760691758517,3.76823669,3710.8,3710.6,0.001]
[1760691758814,34.44271534,3710.7,3710.6,0.001]
[1760691759020,37.73331534,3710.7,3710.6,0.001]
[1760691759193,5.05658194,3710.6,3710.5,1.01329257]
[1760691759612,5.49718194,3710.6,3710.5,1.01329257]
[1760691760208,1.728,3710.6,3710.5,1.01329257]
[1760691760929,2.1686,3710.6,3710.5,1.01329257]
[1760691761109,5.49718194,3710.6,3710.5,1.01329257]
[1760691761436,5.05658194,3710.6,3710.5,1.01329257]
[1760691762000,2.3616,3710.6,3710.5,1.01329257]
[1760691762438,5.05658194,3710.6,3710.5,1.01329257]
[1760691762638,0.4228321,3710.6,3710.5,1.01329257]
[1760691762836,2.9278321,3710.6,3710.5,1.81364337]
[1760691763060,2.505,3710.6,3710.5,4.13774714]
[1760691763357,2.505,3710.6,3710.5,1.01329257]
[1760691763503,3.1386,3710.6,3710.5,1.01329257]
[1760691764157,4.8666,3710.6,3710.5,1.01329257]
[1760691764524,5.2894382,3710.6,3710.5,1.01329257]
[1760691765249,5.33641679,3710.6,3710.5,1.01329257]
[1760691765827,5.52235642,3710.6,3710.5,1.01329257]
[1760691766029,2.19781679,3710.6,3710.5,1.01329257]
[1760691766308,0.04697859,3710.6,3710.5,1.01329257]
[1760691766707,4.42298194,3710.6,3710.5,1.01329257]
[1760691767037,4.577,3710.6,3710.5,1.01329257]
[1760691767206,7.71258194,3710.6,3710.5,1.01329257]
[1760691767947,7.71258194,3710.6,3709.3,2.46835701]
[1760691767948,2.69512721,3710.4,3709.3,2.46835701]
[1760691768154,2.69512721,3710.4,3708.6,1.23]
[1760691768155,2.6963626,3708.7,3708.6,1.23]
[1760691768339,2.6963626,3708.7,3707.3,9.861613]
[1760691768340,0.6336,3707.4,3707.3,9.72039451]
[1760691768544,0.6336,3707.4,3707.3,9.28399451]
[1760691768545,47.32675772,3707.4,3707.3,9.28399451]
[1760691768730,36.64685979,3707.4,3707.3,9.28399451]
[1760691768932,2.69803098,3706.5,3705.1,0.2308]
[1760691769121,2.3616,3706.1,3704.7,0.2308]
[1760691769320,28.55217172,3705.6,3704.6,0.4294]
[1760691769535,2.91,3705.5,3705.1,0.2308]
[1760691769737,0.6336,3705.9,3705.4,0.4294]
[1760691769940,0.04703261,3706.0,3705.5,0.4294]
[1760691770352,0.14111091,3708.0,3705.5,0.4294]
[1760691770550,3.5456,3707.9,3705.5,0.4294]
[1760691770752,0.0470043,3707.1,3705.7,2.69854548]
[1760691770939,2.912,3707.0,3705.8,3.12784258]
[1760691771141,2.912,3707.0,3706.9,0.2308]
[1760691771540,2.912,3707.0,3706.9,0.6832]
[1760691771743,2.912,3707.0,3706.9,3.3808719]
[1760691772052,2.914,3707.4,3707.3,2.69738084]
[1760691772244,0.04699367,3707.8,3707.7,2.69708984]
[1760691772429,0.04699367,3707.8,3707.7,3.14948984]
[1760691772834,2.9099312,3712.0,3707.7,1.03707221]
[1760691773056,0.42303823,3709.2,3707.8,3.38519762]
[1760691773257,0.42303823,3709.2,3709.0,2.69614451]
[1760691773459,1.215,3710.4,3709.3,2.69589573]
[1760691773763,1.215,3710.4,3709.4,0.4524]
[1760691773764,0.42290365,3710.0,3709.4,0.4524]
[1760691773962,0.42290365,3710.0,3709.9,2.69549044]
[1760691774258,2.474,3710.3,3710.2,2.69527249]
[1760691774424,2.917,3710.7,3710.6,2.69498194]
[1760691774624,2.917,3710.7,3710.2,0.4524]
[1760691774827,2.917,3710.7,3710.6,2.69498194]
[1760691775341,2.917,3710.7,3710.6,3.14738194]
[1760691775652,2.917,3710.7,3710.1,0.2358]
[1760691775959,2.917,3710.7,3710.5,2.69499569]
[1760691776163,0.04697619,3710.7,3710.6,3.14738194]
[1760691776363,0.4227615,3711.2,3711.0,2.69469145]
[1760691776664,1.58,3712.1,3711.3,2.69447363]
[1760691776900,0.42259922,3712.1,3711.4,0.4524]
[1760691777048,0.42259922,3712.1,3712.0,2.69396551]
[1760691777371,0.04695866,3713.3,3713.2,2.6930949]
[1760691777526,0.002,3715.0,3713.2,0.4524]
[1760691777527,1.4314,3714.9,3713.2,0.4524]
[1760691777730,2.92,3714.8,3713.2,0.4524]
[1760691777967,0.04694489,3714.4,3713.2,0.4524]
[1760691778327,0.04694489,3714.4,3713.3,0.1344]
[1760691778570,0.1344,3714.0,3713.8,2.69265927]
[1760691778731,3.0534,3714.0,3713.3,0.1344]
[1760691779067,1.215,3714.9,3714.3,2.69229733]
[1760691779238,2.918,3714.6,3714.5,2.69215237]
[1760691779638,2.918,3714.6,3714.2,0.2358]
[1760691779844,2.918,3714.6,3714.0,2.69246016]
[1760691780154,2.918,3714.6,3713.6,0.2358]
[1760691780155,2.918,3714.6,3713.9,0.4524]
[1760691780367,2.918,3714.6,3713.6,0.2358]
[1760691780553,0.6336,3714.4,3713.6,0.2358]
[1760691780861,0.6328,3714.4,3713.3,0.4524]
[1760691781629,0.42239019,3714.2,3713.1,0.2358]
[1760691781972,0.04693543,3714.5,3714.4,2.69222485]
[1760691782175,0.002,3715.0,3714.9,2.69186249]
[1760691782377,1.215,3716.8,3715.3,2.69157268]
[1760691782535,0.04692121,3716.0,3715.7,2.69128293]
[1760691782737,0.079,3716.4,3715.7,2.69128293]
[1760691782984,0.079,3716.4,3715.7,3.14368293]
[1760691783335,0.002,3716.9,3715.7,3.14368293]
[1760691783689,0.002,3716.9,3716.8,2.69048643]
[1760691783839,0.35209797,3719.5,3718.7,2.68904892]
[1760691784034,0.35209797,3719.5,3718.5,0.2181]
[1760691784035,0.046,3719.4,3718.5,0.2181]
[1760691784234,0.046,3719.4,3717.5,0.4398]
[1760691784557,0.09288127,3719.4,3717.7,2.68983511]
[1760691784757,0.51470893,3719.4,3717.8,0.4398]
[1760691784939,0.04688127,3719.4,3718.1,1.728]
[1760691785137,0.04688127,3719.4,3719.3,2.90677797]
[1760691785338,0.42179165,3720.4,3719.5,2.68846874]
[1760691785561,0.04886701,3720.5,3719.4,0.4398]
[1760691785758,0.04886701,3720.5,3720.3,0.2181]
[1760691785971,0.002,3720.5,3720.4,3.12768302]
[1760691786175,0.002,3721.3,3721.2,2.68730517]
[1760691786348,0.002,3721.3,3721.2,0.4398]
[1760691786675,2.321,3722.1,3721.2,0.4398]
[1760691786842,0.6,3722.7,3722.2,2.6865832]
[1760691787171,0.6,3722.7,3722.6,2.68629452]
[1760691787360,0.0468272,3723.4,3722.8,2.68612913]
[1760691787566,0.0468272,3723.4,3722.6,12.67428345]
[1760691787567,0.0468272,3723.4,3723.3,0.1221]
[1760691787762,0.42334362,3724.8,3723.3,0.1221]
[1760691787949,0.4292,3724.7,3722.7,0.5619]
[1760691788278,0.04881731,3724.8,3723.1,2.68593376]
[1760691788444,0.002,3724.8,3723.3,0.6336]
[1760691788642,0.002,3724.8,3723.5,1.728]
[1760691788843,0.002,3724.8,3723.4,3.3598]
[1760691788844,0.002,3724.8,3724.5,0.1336]
[1760691789160,0.002,3724.8,3723.8,0.1336]
[1760691789161,0.1336,3724.5,3723.8,0.1336]
[1760691789338,0.1336,3723.9,3722.0,0.5619]
[1760691789546,1.0628,3723.8,3722.0,0.5619]
[1760691789738,0.6336,3723.6,3722.0,0.5619]
[1760691790206,0.04682396,3723.4,3722.0,2.80881883]
[1760691790357,0.04682396,3723.4,3722.1,0.44827578]
[1760691790725,0.264,3723.7,3722.2,1.728]
[1760691790900,0.264,3723.7,3722.4,1.728]
[1760691791187,0.83124322,3724.5,3722.4,2.766137]
[1760691791490,0.6336,3724.0,3722.3,0.4398]
[1760691791690,0.6336,3724.0,3722.8,2.68613677]
[1760691791890,0.6336,3724.0,3722.3,0.4398]
[1760691792100,0.04681561,3724.1,3723.4,2.68566205]
[1760691792281,0.41,3724.5,3723.6,2.6855731]
[1760691792448,0.002,3724.8,3723.5,0.1221]
[1760691792449,0.04880832,3724.8,3723.5,0.1221]
[1760691792847,0.04880832,3724.8,3723.9,2.68533196]
[1760691793066,0.04880832,3724.8,3723.6,2.6855731]
[1760691793400,0.002,3724.8,3723.8,2.68542886]
[1760691793604,0.002,3724.8,3724.7,2.90287998]
[1760691793885,0.002,3725.6,3724.7,2.90287998]
[1760691793886,0.048798,3725.6,3725.1,2.68449169]
[1760691794192,0.002,3725.6,3724.8,3.12446499]
[1760691794391,0.002,3725.6,3724.8,0.4398]
[1760691794885,0.002,3725.6,3724.7,2.90287443]
[1760691795106,0.002,3725.6,3724.7,0.6579]
[1760691795409,0.002,3725.6,3725.5,2.68420346]
[1760691795757,0.42097279,3727.3,3726.6,2.68334107]
[1760691795956,1.03,3727.5,3726.2,0.1661]
[1760691796205,1.03,3727.5,3725.8,0.1661]
[1760691796757,1.01177491,3727.6,3726.9,2.68319514]
[1760691796986,1.01177491,3727.6,3727.3,2.68290719]
[1760691797207,1.01177491,3727.6,3727.5,2.68276324]
[1760691797208,0.94127491,3727.6,3727.5,2.68276324]
[1760691797974,0.94127491,3727.6,3727.5,8.43666218]
[1760691798181,0.94127491,3727.6,3727.5,6.14835124]
[1760691798896,0.94127491,3727.6,3727.5,2.68276324]
[1760691799391,0.86807426,3727.6,3727.5,6.97790324]
[1760691799594,0.86807426,3727.6,3727.5,2.81636324]
[1760691799802,0.86807426,3727.6,3727.5,5.43090324]
[1760691800005,0.86807426,3727.6,3727.5,2.81636324]
[1760691800176,0.86807426,3727.6,3727.0,0.01]
[1760691800564,1.0628,3727.5,3727.0,0.01]
[1760691800762,0.6336,3727.3,3727.0,0.01]
[1760691800961,0.6336,3727.1,3724.7,0.2181]
[1760691801163,0.6336,3726.9,3724.8,3.060998]
[1760691801360,0.6336,3726.6,3724.7,0.2181]
[1760691801565,0.6336,3726.4,3724.7,0.2181]
[1760691801866,1.728,3726.7,3724.8,0.02684707]
[1760691802097,0.6336,3727.3,3725.6,2.26154]
[1760691802336,0.6336,3727.1,3724.4,2.68492529]
[1760691802533,0.6336,3726.9,3724.5,2.735894]
[1760691802835,0.6336,3726.1,3724.6,0.02684852]
[1760691803039,0.463,3726.8,3724.8,15.161959]
[1760691803286,1.1186,3726.7,3724.9,1.54667583]
[1760691803533,1.728,3727.0,3725.3,1.728]
[1760691803750,0.463,3726.9,3724.8,2.68465387]
[1760691803896,1.728,3727.0,3724.8,2.68465387]
[1760691803897,1.728,3727.0,3726.1,2.68376002]
[1760691804098,2.922,3727.1,3725.4,1.738]
[1760691804348,2.922,3727.1,3725.7,1.728]
[1760691804550,1.728,3727.0,3724.8,1.728]
[1760691804856,2.922,3727.1,3725.5,1.728]
[1760691805001,2.922,3727.1,3725.8,5.58707]
[1760691805203,2.922,3727.1,3727.0,2.68312315]
[1760691805399,0.002,3727.8,3727.5,2.68276324]
[1760691806538,0.002,3727.8,3725.3,2.6843439]
[1760691806539,0.002,3727.8,3725.8,0.01]
[1760691806725,1.403,3727.8,3725.8,2.9533863]
[1760691807036,0.002,3727.8,3726.2,12.89584]
[1760691807238,0.002,3727.8,3725.9,2.935]
[1760691807442,0.463,3727.5,3726.7,2.68328168]
[1760691807629,0.463,3727.5,3725.9,6.192204]
[1760691807833,0.463,3727.5,3725.8,1.728]
[1760691807834,0.002,3727.8,3726.2,4.598111]
[1760691808027,0.6336,3727.5,3725.4,6.046743]
[1760691808338,3.79307426,3727.6,3725.5,0.01741982]
[1760691808506,1.0966,3727.5,3725.5,0.01741982]
[1760691808702,1.0966,3727.5,3726.5,2.68342068]
[1760691808944,2.8246,3727.5,3725.5,0.01]
[1760691809116,2.8246,3727.5,3725.7,10.78018537]
[1760691809306,3.8398224,3727.6,3726.0,1.728]
[1760691809504,0.9148224,3727.6,3727.5,2.68276324]
[1760691809719,1.33107426,3727.6,3727.3,2.68288695]
[1760691809919,1.33107426,3727.6,3725.8,1.25226712]
[1760691809920,0.86807426,3727.6,3725.8,0.01]
[1760691810152,0.86807426,3727.6,3726.1,7.723105]
[1760691810153,0.463,3727.5,3726.1,7.723105]
[1760691810356,0.86807426,3727.6,3727.5,2.68276324]
[1760691811825,1e-08,3727.8,3727.7,2.6826193]
[1760691812022,1e-08,3727.8,3727.7,10.4374643]
[1760691812254,1e-08,3727.8,3727.7,2.6826193]
[1760691812631,1e-08,3727.8,3726.6,1.728]
[1760691812835,1e-08,3727.8,3726.6,0.76048103]
[1760691813032,1e-08,3727.8,3726.3,2.850992]
[1760691813235,2.351,3727.7,3725.6,2.030913]
[1760691813437,2.501,3727.6,3725.8,12.278013]
[1760691813636,1e-08,3727.8,3725.9,0.02683915]
[1760691813836,1e-08,3727.8,3727.7,2.6826193]
[1760691814037,1e-08,3727.8,3726.7,2.6833331]
[1760691814247,1e-08,3727.8,3727.7,2.6826193]
[1760691814755,1e-08,3727.8,3726.7,0.26833331]
[1760691814960,0.46300001,3727.8,3727.5,2.68272729]
[1760691815166,0.46300001,3727.8,3726.2,1.74659952]
[1760691815167,1e-08,3727.8,3727.6,2.68268134]
[1760691815335,1e-08,3727.8,3727.7,2.6826193]
[1760691816048,1e-08,3727.8,3727.2,2.924]
[1760691816223,1e-08,3727.8,3727.3,2.70973083]
[1760691816425,1e-08,3727.8,3727.7,2.6826193]
[1760691817038,1e-08,3727.8,3727.3,2.68287644]
[1760691817265,0.463,3727.7,3727.4,2.68283424]
[1760691817568,0.463,3727.7,3727.2,2.68295803]
[1760691817569,0.463,3727.6,3727.0,0.01]
[1760691817970,0.6336,3727.5,3727.0,0.01]
[1760691818154,2.3616,3727.5,3727.0,0.01]
[1760691818478,0.6336,3727.3,3727.0,0.01]
[1760691818947,0.463,3727.2,3727.0,0.01]
[1760691819346,2.923,3727.6,3727.0,0.01]
[1760691820062,2.923,3727.6,3727.3,2.68289707]
[1760691820360,2.923,3727.6,3727.5,2.81636324]
[1760691820561,3.386,3727.6,3727.4,0.1336]
[1760691820759,3.386,3727.6,3727.0,0.01]
[1760691820760,2.9582,3727.5,3727.0,0.01]
[1760691820971,2.3246,3727.5,3727.0,0.01]
[1760691821164,2.92,3727.4,3727.0,0.01]
[1760691821362,2.92,3727.4,3727.3,2.68290719]
[1760691821550,3.382,3727.4,3727.0,0.01]
[1760691821750,2.919,3727.4,3727.3,2.68290719]
[1760691822386,2.919,3727.4,3727.0,0.01]
[1760691822549,2.919,3727.4,3727.3,2.68290719]
[1760691822749,1e-08,3727.8,3727.7,2.6826193]
[1760691822985,1e-08,3727.8,3727.2,2.68295115]
[1760691822986,2.91900001,3727.8,3727.0,0.01]
[1760691823198,2.8246,3727.7,3727.0,0.01]
[1760691823881,2.8246,3727.7,3727.0,2.69306593]
[1760691824057,2.8246,3727.7,3727.1,2.68302712]
[1760691824381,0.6336,3727.5,3727.0,2.69311893]
[1760691824587,0.463,3727.5,3727.2,2.68295628]
[1760691824766,0.463,3727.4,3727.0,0.01]
[1760691825089,0.6336,3727.3,3727.0,0.01]
[1760691825383,1.0966,3727.3,3727.0,0.01]
[1760691825590,0.463,3727.2,3726.8,2.68325526]
[1760691825790,0.42091644,3727.4,3727.3,2.68290719]
[1760691826095,1e-08,3727.8,3726.5,2.68347148]
[1760691826096,2.916,3727.7,3727.6,2.68269127]
[1760691826852,2.916,3727.7,3727.4,2.68278776]
[1760691826853,3.379,3727.7,3727.4,2.68278776]
[1760691827057,0.463,3727.6,3727.2,2.68297918]
[1760691827252,0.463,3727.5,3726.0,2.68384326]
[1760691827509,1e-08,3727.8,3727.7,2.6826193]
[1760691828422,0.00120001,3728.0,3727.9,2.68247538]
[1760691828758,0.09609115,3728.8,3728.7,2.68189985]
[1760691829777,0.14035132,3729.8,3729.7,2.68118079]
[1760691830785,0.14035132,3729.8,3729.1,0.1436]
[1760691831107,0.14035132,3729.8,3728.7,0.1436]
[1760691831108,0.2285,3729.7,3729.4,2.68138093]
[1760691831403,0.2285,3729.7,3729.5,0.1336]
[1760691831611,0.14035132,3729.8,3729.5,0.1336]
[1760691832182,0.14035132,3729.8,3729.7,2.68118079]
[1760691832382,0.18461149,3730.8,3730.7,2.68046211]
[1760691832990,0.22887166,3731.8,3731.7,2.67974381]
[1760691834105,0.22887166,3731.8,3729.7,0.26811808]
[1760691834301,0.22887166,3731.8,3730.5,1.8716]
[1760691834493,0.22887166,3731.8,3731.5,2.67981715]
[1760691834692,0.22887166,3731.8,3731.0,4.65679]
[1760691834901,0.22887166,3731.8,3731.7,2.67974381]
[1760691835197,1e-08,3731.8,3731.7,13.39572781]
[1760691835410,0.27313182,3732.8,3732.7,2.6790259]
[1760691835623,0.27313182,3732.8,3732.7,5.5856339]
[1760691836118,0.27313182,3732.8,3732.7,2.6790259]
[1760691836922,0.27313182,3732.8,3732.7,8.4336889]
[1760691837484,0.27313182,3732.8,3732.7,2.6790259]
[1760691837686,0.27313182,3732.8,3732.5,2.91]
[1760691837887,0.27313182,3732.8,3732.7,2.6790259]
[1760691838185,0.27313182,3732.8,3731.9,0.1436]
[1760691838383,0.27313182,3732.8,3731.5,0.1436]
[1760691838582,0.27313182,3732.8,3731.7,1.728]
[1760691838786,0.27313182,3732.8,3732.5,2.67911285]
[1760691838987,0.27313182,3732.8,3732.7,2.6790259]
[1760691839619,0.27313182,3732.8,3731.5,1.8716]
[1760691839930,0.73433182,3732.8,3731.6,2.072657]
[1760691840092,0.27313182,3732.8,3731.7,1.728]
[1760691840421,0.27313182,3732.8,3731.6,0.28963471]
[1760691840598,0.27313182,3732.8,3732.7,2.6790259]
[1760691840803,0.27313182,3732.8,3731.7,0.1436]
[1760691840804,0.95343182,3732.8,3731.7,2.67974381]
[1760691841023,0.49223182,3732.8,3731.6,1.728]
[1760691841326,0.49223182,3732.8,3731.5,3.0516]
[1760691841327,0.441,3732.7,3731.5,0.1436]
[1760691841490,0.441,3732.7,3731.1,0.1436]
[1760691841824,0.49223182,3732.8,3731.5,1.728]
[1760691842023,0.27313182,3732.8,3732.7,2.6790259]
[1760691842423,0.27313182,3732.8,3732.7,2.8126259]
[1760691842610,0.71413182,3732.8,3732.7,0.1336]
[1760691842945,0.6336,3732.6,3731.2,0.1336]
[1760691843223,0.8486,3731.3,3730.1,2.68084409]
[1760691843457,6.79731602,3731.2,3730.6,0.1336]
[1760691843630,0.215,3730.7,3729.8,0.1336]
[1760691843922,0.1336,3730.3,3729.8,0.1336]
[1760691844123,0.441,3730.2,3729.9,0.1336]
[1760691844298,0.215,3730.7,3729.3,0.1336]
[1760691844299,0.1336,3729.9,3729.3,0.1336]
[1760691844503,0.1336,3729.9,3727.7,0.1436]
[1760691844504,0.441,3729.8,3727.7,0.1436]
[1760691844819,0.1336,3729.0,3728.4,0.1336]
[1760691845021,3.0426,3729.0,3728.4,0.1336]
[1760691845222,2.3616,3728.4,3727.0,0.001]
[1760691845433,0.6336,3728.4,3727.0,0.001]
[1760691845636,0.6336,3728.2,3727.0,0.001]
[1760691845992,0.6336,3728.0,3727.0,0.001]
[1760691846193,0.6336,3728.0,3726.6,0.001]
[1760691846194,2.3616,3727.8,3726.6,0.001]
[1760691846431,0.8486,3726.7,3726.6,0.001]
[1760691846602,3.7576,3726.7,3726.6,0.001]
[1760691846922,2.3616,3726.6,3726.2,0.001]
[1760691847152,1.0746,3726.6,3726.2,0.001]
[1760691847376,0.6336,3726.4,3726.2,0.001]
[1760691847870,1.0746,3726.3,3726.2,0.001]
[1760691848180,1.0746,3726.3,3725.1,0.001]
[1760691848389,0.6336,3725.5,3725.1,0.001]
[1760691848552,0.6336,3725.5,3724.7,0.001]
[1760691848553,0.6336,3725.3,3724.7,0.001]
[1760691848877,0.8486,3724.8,3724.7,0.001]
[1760691849370,2.906,3725.2,3724.7,0.001]
[1760691849590,2.906,3725.2,3725.0,2.68455385]
[1760691849798,2.906,3725.2,3725.1,2.68449169]
[1760691849943,2.906,3725.2,3725.1,3.22140444]
[1760691850141,0.656,3726.7,3726.0,2.68379354]
[1760691850443,0.702779,3726.7,3725.2,8.156135]
[1760691850786,1.761,3726.6,3724.8,2.465]
[1760691851022,1.32,3726.6,3724.7,0.001]
[1760691851175,0.6336,3726.4,3724.7,0.001]
[1760691851375,0.6336,3726.4,3724.8,2.083]
[1760691851687,0.6336,3726.2,3724.7,0.001]
[1760691851887,0.6336,3726.0,3724.7,0.001]
[1760691852220,0.8478,3724.8,3724.7,0.001]
[1760691852414,3.7538,3724.8,3724.7,0.001]
[1760691852708,3.7538,3724.8,3722.3,9.601654]
[1760691852709,2.3616,3724.7,3722.3,9.601654]
[1760691853011,2.3616,3724.7,3723.8,2.68539057]
[1760691853012,0.6336,3724.5,3723.8,2.68539057]
[1760691853198,0.6336,3724.3,3723.6,2.6855367]
[1760691853379,0.6336,3724.3,3722.8,2.68608099]
[1760691853581,0.6336,3724.3,3723.8,2.68538669]
[1760691853782,1.0746,3724.3,3723.9,2.6853464]
[1760691854014,0.441,3724.3,3723.1,2.68591729]
[1760691854213,2.904,3724.3,3724.0,2.68524636]
[1760691854513,2.904,3724.3,3723.3,8.44536548]
[1760691854514,1.0746,3724.2,3723.3,2.68578948]
[1760691854699,1.0746,3724.2,3723.2,0.26859173]
[1760691855179,1.0746,3724.2,3722.3,2.68651102]
[1760691855516,1.0746,3724.2,3722.2,0.1504]
[1760691855517,0.1336,3723.8,3723.2,0.1336]
[1760691855885,0.1336,3723.8,3723.7,2.68550098]
[1760691856483,2.904,3724.3,3723.1,1.728]
[1760691856693,0.215,3725.7,3724.5,10.50069115]
[1760691856914,0.215,3725.7,3724.2,2.68514043]
[1760691856915,0.215,3725.7,3725.6,2.68413141]
[1760691857226,2.742,3725.7,3723.9,26.61209165]
[1760691857518,3.183,3725.7,3724.2,1.728]
[1760691857724,0.04678979,3726.3,3724.5,2.68492415]
[1760691857907,2.902,3726.1,3725.8,2.68392164]
[1760691858217,2.902,3726.1,3724.3,0.1728]
[1760691858218,3.343,3726.1,3724.3,0.1728]
[1760691858422,0.04678979,3726.3,3724.3,0.1728]
[1760691858423,0.04678979,3726.3,3724.9,2.68461647]
[1760691858644,0.441,3726.2,3724.3,0.1728]
[1760691858844,0.441,3726.2,3723.7,2.68543936]
[1760691858845,0.6336,3726.1,3723.7,2.68543936]
[1760691859005,0.6336,3725.9,3723.9,8.138924]
[1760691859205,0.441,3726.0,3723.9,8.138924]
[1760691859206,0.6336,3725.7,3724.2,6.944678]
[1760691859441,0.6336,3725.7,3723.9,0.1504]
[1760691859442,0.04679401,3725.6,3724.4,8.44268724]
[1760691860010,1.728,3725.5,3723.4,4.69488035]
[1760691860236,1.0746,3725.4,3723.6,6.557076]
[1760691860437,0.6336,3725.2,3724.6,2.68484145]
[1760691860736,0.68039509,3725.2,3724.7,2.68476048]
[1760691861036,0.6336,3725.0,3724.6,2.68482865]
[1760691861341,0.04679509,3725.2,3724.9,2.68463582]
[1760691861544,0.6336,3725.6,3725.1,2.68449169]
[1760691861709,0.6336,3725.4,3725.0,2.6845424]
[1760691861907,0.6336,3725.2,3723.9,2.348227]
[1760691862106,0.6336,3725.2,3723.9,0.2348227]
[1760691862406,0.6336,3725.0,3722.5,11.918218]
[1760691862612,0.6497,3724.9,3724.3,2.6850625]
[1760691862810,0.42116496,3725.0,3723.6,2.68552668]
[1760691863010,0.6336,3724.8,3723.9,2.68533826]
[1760691863223,0.6336,3724.6,3722.9,0.1504]
[1760691863420,0.6336,3724.6,3723.4,2.68571735]
[1760691863620,0.6336,3724.6,3724.5,2.68492415]
[1760691863839,2.899,3724.7,3724.5,2.68492415]
[1760691864154,2.899,3724.7,3724.6,2.68485206]
[1760691865209,2.899,3724.7,3722.9,1.1491687]
[1760691865441,2.899,3724.7,3724.6,2.68485206]
[1760691866160,2.899,3724.7,3723.5,1.728]
[1760691866360,2.899,3724.7,3723.6,2.373]
[1760691866578,2.899,3724.7,3724.3,2.68499669]
[1760691866731,2.899,3724.7,3724.6,2.68485206]
[1760691867976,2.899,3724.7,3724.6,2.81845206]
[1760691868127,0.002,3725.0,3724.9,2.68463582]
[1760691868461,0.002,3725.0,3724.9,3.50341715]
[1760691868761,0.002,3725.0,3724.9,2.68463582]
[1760691868975,1.617,3725.0,3723.5,0.45641933]
[1760691869138,1.617,3725.0,3724.7,0.1336]
[1760691869325,1.617,3725.0,3724.9,2.68463582]
[1760691869531,2.052,3725.0,3724.7,0.1336]
[1760691869731,1.617,3725.0,3724.9,2.68463582]
[1760691870340,0.002,3725.0,3724.9,3.37121669]
[1760691870554,0.002,3725.0,3724.9,5.27646304]
[1760691870779,0.002,3725.0,3724.9,5.11601669]